bitfinex/quotes_SOLUSD_20250803
["timestamp","ask_amount","ask_price","bid_price","bid_amount"]
[1754237116389,0.75,162.15,162.12,15.46]
[1754237116592,0.75,162.15,162.14,5.97360198]
[1754237116783,0.75,162.15,162.14,9.33582131]
[1754237117111,0.75,162.15,162.13,43.14]
[1754237117315,0.75,162.15,162.14,9.33582131]
[1754237118201,0.75,162.15,162.14,52.47582131]
[1754237119223,5.36144035,162.15,162.14,52.47582131]
[1754237120499,4.64144035,162.15,162.14,52.47582131]
[1754237120939,4.64144035,162.15,162.14,9.99582131]
[1754237121089,4.64144035,162.15,162.14,52.47582131]
[1754237121297,4.64144035,162.15,162.14,9.33582131]
[1754237121495,4.64144035,162.15,162.14,52.47582131]
[1754237122228,0.03,162.15,162.14,52.47582131]
[1754237122637,0.03,162.15,162.14,53.75257226]
[1754237123728,0.03,162.15,162.14,53.13582131]
[1754237126531,0.03,162.15,162.14,52.47582131]
[1754237131529,0.03,162.15,162.14,53.13582131]
[1754237133254,4.65076889,162.15,162.14,53.13582131]
[1754237133673,4.65076889,162.15,162.14,52.47582131]
[1754237135052,4.65076889,162.15,162.14,53.09257226]
[1754237136752,4.65076889,162.15,162.14,49.73032668]
[1754237138876,5.36076889,162.15,162.14,49.73032668]
[1754237139244,0.74,162.15,162.14,49.73032668]
[1754237140696,0.74,162.15,162.14,6.59032668]
[1754237140996,0.74,162.15,162.14,49.09357573]
[1754237141192,4.90509208,162.15,162.14,49.09357573]
[1754237141508,30.90509208,162.15,162.13,5.97357573]
[1754237141664,26.0,162.13,162.12,15.46]
[1754237141866,30.87509208,162.13,162.12,58.58]
[1754237143264,35.50318949,162.13,162.12,58.58]
[1754237143585,35.50318949,162.13,162.12,43.2]
[1754237144264,35.50318949,162.13,162.12,49.17357573]
[1754237144679,35.50318949,162.13,162.12,52.53942461]
[1754237145865,35.5006156,162.13,162.12,52.53942461]
[1754237148392,31.33809741,162.13,162.12,52.53942461]
[1754237149085,4.62809741,162.13,162.12,52.53942461]
[1754237149593,4.62809741,162.13,162.12,53.23942461]
[1754237149892,30.62809741,162.13,162.12,53.23942461]
[1754237150291,0.71,162.15,162.12,52.53942461]
[1754237150483,4.87053997,162.15,162.14,9.33942461]
[1754237150794,4.87053997,162.15,162.14,52.47942461]
[1754237152290,9.49314831,162.15,162.14,52.47942461]
[1754237154100,8.81314831,162.15,162.14,52.47942461]
[1754237154276,8.81314831,162.15,162.14,53.17942461]
[1754237154602,4.65260834,162.15,162.14,53.17942461]
[1754237158274,4.65260834,162.15,162.14,52.47942461]
[1754237159188,4.65260834,162.15,162.14,53.17942461]
[1754237162596,4.65260834,162.15,162.14,52.47942461]
[1754237165304,4.65260834,162.15,162.14,53.17942461]
[1754237166488,0.03,162.15,162.14,53.17942461]
[1754237166691,0.03,162.15,162.14,49.81296801]
[1754237167914,0.03,162.15,162.14,66.59765198]
[1754237168096,0.03,162.15,162.14,81.99765198]
[1754237168410,0.03,162.15,162.14,67.21440293]
[1754237168981,0.03,162.16,162.14,67.21440293]
[1754237169186,0.03,162.16,162.15,6.67296801]
[1754237172984,0.68,162.2,162.15,6.67296801]
[1754237173190,0.24,162.2,162.19,5.97296801]
[1754237173389,0.24,162.2,162.19,49.07296801]
[1754237186930,0.24,162.2,162.19,5.97296801]
[1754237187229,0.24,162.2,162.19,49.07296801]
[1754237190331,0.24,162.2,162.19,43.1]
[1754237190506,0.24,162.2,162.19,49.07296801]
[1754237192353,4.18209234,162.21,162.19,49.07296801]
[1754237192641,0.03,162.21,162.2,6.69296801]
[1754237194236,0.03,162.21,162.2,0.72]
[1754237194439,0.03,162.21,162.2,6.69296801]
[1754237194745,0.03,162.21,162.19,43.1]
[1754237195044,0.03,162.21,162.15,5.97296801]
[1754237195045,26.0,162.19,162.15,5.97296801]
[1754237195223,4.83287279,162.18,162.16,43.08]
[1754237195621,5.29690714,162.17,162.16,43.08]
[1754237196051,5.29690714,162.17,162.16,49.05296801]
[1754237196423,5.29690714,162.17,162.16,43.08]
[1754237196737,0.68,162.17,162.16,43.08]
[1754237197237,26.68,162.17,162.16,43.08]
[1754237197438,30.83287279,162.17,162.16,43.08]
[1754237198642,4.83287279,162.17,162.16,52.41602288]
[1754237198818,0.03,162.21,162.17,16.78468397]
[1754237199018,0.03,162.21,162.2,9.33602288]
[1754237199236,0.03,162.21,162.2,52.41602288]
[1754237199439,0.03,162.21,162.2,53.13602288]
[1754237204038,0.75,162.21,162.2,52.41602288]
[1754237204418,0.75,162.21,162.2,43.08]
[1754237204623,0.75,162.21,162.2,52.41602288]
[1754237207531,0.75,162.21,162.2,43.08]
[1754237208244,0.75,162.21,162.2,52.41602288]
[1754237208618,4.65043811,162.21,162.2,52.41602288]
[1754237208820,5.37043811,162.21,162.2,52.41602288]
[1754237209440,4.65043811,162.21,162.2,52.41602288]
[1754237209631,0.03,162.21,162.2,52.41602288]
[1754237209936,0.75,162.21,162.2,52.41602288]
[1754237210135,0.75,162.21,162.2,43.08]
[1754237210348,26.75,162.21,162.2,43.08]
[1754237210534,30.90679743,162.21,162.2,43.08]
[1754237212246,26.0,162.2,162.19,0.06]
[1754237212444,30.87679743,162.2,162.19,0.06]
[1754237213247,26.72,162.2,162.19,0.06]
[1754237213426,4.88019233,162.2,162.19,0.06]
[1754237213627,4.16019233,162.2,162.19,9.39602288]
[1754237214018,4.88019233,162.2,162.19,0.06]
[1754237215644,14.21621521,162.2,162.19,0.06]
[1754237215840,4.88019233,162.2,162.19,0.06]
[1754237216344,4.88019233,162.2,162.19,43.14]
[1754237222433,4.87808962,162.2,162.19,43.14]
[1754237223561,14.2141125,162.2,162.19,43.14]
[1754237224546,14.2141125,162.2,162.19,0.06]
[1754237226042,4.15808962,162.2,162.19,0.06]
[1754237226450,4.87808962,162.2,162.19,0.06]
[1754237227340,4.15808962,162.2,162.19,0.06]
[1754237228958,4.87808962,162.2,162.19,0.06]
[1754237232330,4.15808962,162.2,162.19,0.06]
[1754237235442,4.82808962,162.2,162.19,0.06]
[1754237235960,14.1641125,162.2,162.19,0.06]
[1754237236655,26.0,162.18,162.17,0.06]
[1754237236861,13.4941125,162.18,162.17,0.06]
[1754237237160,19.36085457,162.18,162.17,0.06]
[1754237237363,14.1641125,162.18,162.17,0.06]
[1754237237662,19.36085457,162.18,162.17,0.06]
[1754237237970,26.0,162.16,162.13,43.08]
[1754237238275,18.78213282,162.15,162.13,43.08]
[1754237238436,8.77610994,162.14,162.13,43.75]
[1754237239254,4.61802032,162.14,162.13,43.75]
[1754237240876,4.15808962,162.15,162.13,43.08]
[1754237241173,4.82808962,162.15,162.13,43.08]
[1754237245364,4.15808962,162.15,162.13,43.75]
[1754237245950,30.15808962,162.15,162.14,0.67]
[1754237246365,30.15300869,162.15,162.14,0.67]
[1754237248989,26.0,162.14,162.13,43.75]
[1754237249347,26.0,162.14,162.13,43.08]
[1754237249652,26.67,162.14,162.13,43.08]
[1754237249868,30.82422832,162.14,162.13,43.08]
[1754237250069,4.82422832,162.14,162.13,43.08]
[1754237250858,9.44027678,162.14,162.13,43.08]
[1754237252794,8.77027678,162.14,162.13,43.75]
[1754237253277,4.61604846,162.14,162.13,43.75]
[1754237253994,4.61655815,162.14,162.13,43.75]
[1754237254986,4.15422832,162.15,162.13,43.75]
[1754237255677,26.0,162.14,162.13,43.08]
[1754237255881,30.15422832,162.14,162.13,52.41602288]
[1754237256201,26.0,162.14,162.13,53.08602288]
[1754237256873,30.15558614,162.14,162.13,43.75]
[1754237257372,30.15558614,162.14,162.13,43.08]
[1754237257573,14.16160902,162.14,162.12,0.06]
[1754237257795,14.16229016,162.13,162.12,0.06]
[1754237258194,40.16229016,162.13,162.12,0.06]
[1754237258401,14.16229016,162.13,162.12,0.06]
[1754237260292,40.16229016,162.13,162.12,0.06]
[1754237260601,14.16229016,162.13,162.12,0.06]
[1754237261093,18.77790905,162.13,162.12,0.06]
[1754237261898,25.87657189,162.13,162.12,0.06]
[1754237262670,42.66125586,162.13,162.12,0.06]
[1754237262898,42.66125586,162.13,162.11,0.06]
[1754237262899,90.93251673,162.13,162.11,0.06]
[1754237263087,18.77790905,162.12,162.11,0.06]
[1754237264893,42.66125586,162.12,162.11,0.06]
[1754237265095,38.04563697,162.12,162.11,0.06]
[1754237265302,42.65622734,162.12,162.11,0.06]
[1754237265494,47.84582163,162.12,162.11,0.06]
[1754237266587,50.32114663,162.12,162.11,0.06]
[1754237266790,60.32114663,162.12,162.11,0.06]
[1754237266995,64.23944934,162.12,162.11,0.06]
[1754237268279,16.78468397,162.11,162.1,0.06]
[1754237268480,51.97694681,162.11,162.1,0.06]
[1754237268801,95.07694681,162.11,162.1,0.06]
[1754237269202,85.74092393,162.11,162.1,0.06]
[1754237270708,95.07694681,162.11,162.1,0.06]
[1754237270907,100.26820768,162.11,162.08,0.2]
[1754237271208,48.79658668,162.1,162.08,0.2]
[1754237271385,16.78468397,162.09,162.08,0.2]
[1754237271585,85.74092393,162.09,162.08,0.2]
[1754237271979,90.9321848,162.09,162.08,0.2]
[1754237273293,95.74092393,162.09,162.08,0.2]
[1754237273508,104.30930193,162.09,162.08,0.2]
[1754237273700,114.30930193,162.09,162.08,0.2]
[1754237275707,26.0,162.06,162.03,0.69]
[1754237275908,8.76155424,162.05,162.03,0.69]
[1754237276079,4.60528696,162.04,162.03,0.69]
[1754237276284,26.0,162.02,162.01,59.69]
[1754237276510,39.94130984,162.02,162.01,59.0]
[1754237277116,39.94130984,162.02,162.01,59.69]
[1754237277914,4.60528696,162.02,162.01,59.69]
[1754237278096,13.94130984,162.02,162.01,59.69]
[1754237279413,4.60528696,162.02,162.01,59.69]
[1754237279604,4.60528696,162.02,162.01,69.02602288]
[1754237281210,9.33602288,162.06,162.01,69.02602288]
[1754237281414,26.0,162.03,162.02,0.69]
[1754237282884,35.33602288,162.05,162.02,0.69]
[1754237283111,35.33602288,162.03,162.01,59.0]
[1754237283296,35.33602288,162.03,162.01,59.69]
[1754237283697,26.0,162.03,162.02,0.69]
[1754237288127,26.0,162.03,162.02,10.02602288]
[1754237288293,26.0,162.03,162.02,9.33602288]
[1754237288492,26.0,162.03,162.02,53.12602288]
[1754237292395,26.0,162.03,162.01,59.0]
[1754237292724,26.66,162.03,162.01,102.1]
[1754237293300,26.0,162.03,162.01,102.1]
[1754237293545,26.0,162.03,162.01,102.79]
[1754237294025,26.0,162.03,162.02,0.66]
[1754237294228,26.0,162.03,162.02,9.99602288]
[1754237294392,26.0,162.03,162.02,9.33602288]
[1754237294589,26.0,162.03,162.02,9.99602288]
[1754237299921,26.0,162.03,162.02,0.66]
[1754237300120,26.0,162.03,162.02,9.99602288]
[1754237304430,5.89126087,162.1,162.02,9.99602288]
[1754237304636,0.03,162.1,162.09,9.33602288]
[1754237304804,0.03,162.1,162.09,53.09602288]
[1754237305538,4.18444367,162.1,162.09,53.09602288]
[1754237307020,0.03,162.1,162.09,53.09602288]
[1754237321627,0.03,162.1,162.09,43.76]
[1754237321830,0.03,162.1,162.09,53.09602288]
[1754237324347,0.03,162.1,162.09,52.43602288]
[1754237326673,0.03,162.1,162.09,49.07804651]
[1754237327545,0.03,162.1,162.09,5.97804651]
[1754237327743,26.0,162.08,162.04,16.01713157]
[1754237327955,26.0,162.07,162.01,59.0]
[1754237328159,26.0,162.07,162.06,5.97804651]
[1754237328463,26.0,162.06,162.05,43.06]
[1754237328651,26.71,162.06,162.05,43.06]
[1754237328851,0.71,162.06,162.05,43.06]
[1754237330938,14.20363488,162.06,162.04,43.06]
[1754237331159,4.85419117,162.05,162.04,43.06]
[1754237331563,0.71,162.05,162.04,43.06]
[1754237331746,0.71,162.05,162.02,9.34944371]
[1754237332047,0.71,162.04,162.03,43.08]
[1754237333576,26.71,162.04,162.02,43.08]
[1754237333746,26.0,162.04,162.02,43.08]
[1754237334044,0.71,162.03,162.02,43.08]
[1754237335355,26.71,162.03,162.02,43.14]
[1754237335756,26.71,162.03,162.02,0.06]
[1754237335956,26.0,162.03,162.02,0.06]
[1754237336366,26.0,162.03,162.02,0.75]
[1754237336546,26.0,162.03,162.02,0.06]
[1754237336865,26.71,162.03,162.02,0.06]
[1754237339254,0.71,162.03,162.02,0.06]
[1754237340060,14.20377942,162.03,162.02,0.06]
[1754237340954,4.85433571,162.03,162.02,0.06]
[1754237343776,14.20377942,162.05,162.02,0.06]
[1754237343960,4.85433571,162.04,162.02,0.06]
[1754237345051,0.71,162.03,162.02,0.06]
[1754237346984,9.34944371,162.05,162.02,0.06]
[1754237347284,4.85167658,162.04,162.02,0.06]
[1754237347458,14.20112029,162.04,162.02,0.06]
[1754237347658,4.85167658,162.03,162.02,0.06]
[1754237352082,0.71,162.03,162.02,0.06]
[1754237353888,4.84874937,162.03,162.02,0.06]
[1754237354271,0.71,162.03,162.02,0.06]
[1754237354475,4.84879379,162.03,162.02,0.06]
[1754237357293,0.71,162.03,162.02,0.06]
[1754237358197,26.0,162.03,162.02,53.17944371]
[1754237361292,26.0,162.03,162.02,43.14]
[1754237361880,26.69,162.03,162.02,43.14]
[1754237363804,26.0,162.03,162.02,43.83]
[1754237365498,26.0,162.03,162.02,43.14]
[1754237365698,30.14727636,162.03,162.02,43.14]
[1754237368897,30.14727636,162.03,162.02,53.17944371]
[1754237370817,11.0666695,162.05,162.02,53.79665146]
[1754237370972,11.0666695,162.05,162.04,9.34944371]
[1754237371301,15.22584852,162.05,162.04,52.42944371]
[1754237371476,15.22584852,162.05,162.04,53.11944371]
[1754237372101,11.0666695,162.05,162.04,53.11944371]
[1754237372274,0.03,162.09,162.05,16.78468397]
[1754237372481,0.03,162.09,162.08,9.34944371]
[1754237372682,0.03,162.09,162.08,52.42944371]
[1754237372885,0.03,162.09,162.08,53.11944371]
[1754237374783,0.03,162.09,162.08,43.08]
[1754237374988,0.03,162.09,162.08,52.42944371]
[1754237376009,0.72,162.09,162.08,43.08]
[1754237376184,0.03,162.09,162.08,52.42944371]
[1754237376992,10.06944371,162.09,162.03,0.69]
[1754237377186,40.20054188,162.08,162.04,43.06]
[1754237377400,4.16109817,162.07,162.04,43.06]
[1754237377706,0.69,162.06,162.04,43.06]
[1754237378620,4.16109817,162.07,162.04,43.06]
[1754237378903,26.69,162.05,162.02,9.40944371]
[1754237379110,26.69,162.05,162.03,43.06]
[1754237379695,0.69,162.05,162.03,43.06]
[1754237379912,26.69,162.04,162.03,43.06]
[1754237380113,30.84419225,162.04,162.03,43.06]
[1754237381919,30.84419225,162.04,162.02,43.12]
[1754237382107,4.84419225,162.03,162.02,43.12]
[1754237382617,4.15419225,162.03,162.02,43.12]
[1754237386992,4.87419225,162.03,162.02,43.12]
[1754237395822,4.15419225,162.03,162.02,43.12]
[1754237396627,4.87419225,162.03,162.02,43.12]
[1754237396928,40.22363596,162.03,162.02,43.12]
[1754237397225,30.87419225,162.03,162.02,43.12]
[1754237397724,40.22363596,162.03,162.02,0.06]
[1754237402633,14.22363596,162.03,162.02,0.06]
[1754237402932,10.05301476,162.03,162.02,0.06]
[1754237403121,19.40245847,162.03,162.02,0.06]
[1754237403314,45.40245847,162.03,162.02,0.06]
[1754237403648,19.40245847,162.03,162.02,0.06]
[1754237404022,35.34944371,162.02,162.01,59.0]
[1754237404327,40.22363596,162.02,162.01,59.0]
[1754237405427,45.41784034,162.02,162.01,59.0]
[1754237406721,36.06839663,162.02,162.01,59.0]
[1754237407039,40.22363596,162.02,162.01,59.0]
[1754237408316,4.15419225,162.02,162.01,59.0]
[1754237408518,13.50363596,162.02,162.01,59.0]
[1754237410043,14.22363596,162.02,162.01,59.0]
[1754237412253,13.50363596,162.02,162.01,59.0]
[1754237412419,30.15419225,162.02,162.01,59.7]
[1754237413441,4.15419225,162.02,162.01,69.04944371]
[1754237413664,4.15419225,162.04,162.01,69.04944371]
[1754237413818,26.0,162.02,162.01,68.34944371]
[1754237414017,30.15419225,162.02,162.01,111.42944371]
[1754237414530,4.15419225,162.02,162.01,112.14944371]
[1754237415128,48.27420438,162.07,162.01,112.14944371]
[1754237415434,26.0,162.04,162.03,9.34944371]
[1754237415646,30.14975496,162.04,162.03,43.8]
[1754237415846,4.14975496,162.04,162.03,43.8]
[1754237416144,26.0,162.04,162.03,43.08]
[1754237416350,30.81975496,162.04,162.03,43.08]
[1754237416650,26.0,162.02,162.01,59.0]
[1754237416849,40.16919867,162.02,162.01,59.0]
[1754237419235,45.36340305,162.02,162.01,59.0]
[1754237421266,40.16919867,162.02,162.01,48.55992703]
[1754237424434,39.49919867,162.02,162.01,48.55992703]
[1754237424633,40.16919867,162.02,162.01,48.55992703]
[1754237424834,39.49919867,162.02,162.01,48.55992703]
[1754237425772,4.14975496,162.02,162.01,48.55992703]
[1754237425940,4.14975496,162.03,162.01,49.27992703]
[1754237426143,4.17975496,162.04,162.02,52.42944371]
[1754237426363,0.03,162.04,162.03,9.34944371]
[1754237426556,0.03,162.04,162.03,0.72]
[1754237426749,4.17975496,162.04,162.03,10.06944371]
[1754237428771,4.17975496,162.04,162.02,43.08]
[1754237428948,0.03,162.04,162.02,43.8]
[1754237429153,0.03,162.04,162.03,0.72]
[1754237429577,0.03,162.04,162.03,10.06944371]
[1754237443389,0.03,162.04,162.03,10.68661336]
[1754237445055,4.14975496,162.08,162.04,16.78468397]
[1754237445257,0.03,162.09,162.07,9.34944371]
[1754237445462,0.03,162.09,162.08,53.02642297]
[1754237445897,0.03,162.09,162.08,53.70642297]
[1754237446761,0.03,162.09,162.08,70.49110694]
[1754237446964,0.03,162.1,162.08,1.29697926]
[1754237447178,0.03,162.1,162.09,10.02944371]
[1754237460497,0.03,162.1,162.09,9.34944371]
[1754237461406,0.71,162.1,162.09,9.34944371]
[1754237461607,0.03,162.1,162.09,9.34944371]
[1754237461810,0.71,162.1,162.05,1.29709348]
[1754237462024,9.34944371,162.09,162.04,9.34944371]
[1754237462181,0.68,162.08,162.05,43.04]
[1754237462495,9.34944371,162.09,162.05,43.04]
[1754237462496,0.68,162.09,162.07,9.34944371]
[1754237462703,4.16729902,162.1,162.07,52.38944371]
[1754237463001,0.68,162.09,162.07,43.04]
[1754237463581,0.68,162.08,162.07,43.04]
[1754237467080,4.82234882,162.08,162.07,43.04]
[1754237469609,14.17179253,162.08,162.06,0.06]
[1754237469808,4.82234882,162.07,162.06,0.06]
[1754237469992,14.17179253,162.07,162.06,0.06]
[1754237470398,19.35526881,162.07,162.06,0.06]
[1754237470606,26.0,162.05,162.04,0.06]
[1754237470807,44.10143725,162.05,162.04,0.06]
[1754237471016,44.78143725,162.05,162.04,0.06]
[1754237472506,40.17179253,162.05,162.04,0.06]
[1754237473517,44.78209147,162.05,162.04,0.06]
[1754237473693,40.17179253,162.05,162.04,0.06]
[1754237474618,4.14234882,162.05,162.04,0.73]
[1754237474806,4.14234882,162.07,162.04,0.73]
[1754237475008,4.85234882,162.07,162.04,0.06]
[1754237475396,0.71,162.06,162.04,0.06]
[1754237475594,4.85234882,162.06,162.04,0.06]
[1754237475914,14.20179253,162.06,162.04,0.06]
[1754237476225,4.14234882,162.05,162.04,0.06]
[1754237476403,8.75263499,162.05,162.04,0.06]
[1754237476604,9.46263499,162.05,162.04,0.06]
[1754237476997,8.75263499,162.05,162.04,0.06]
[1754237477387,8.75263499,162.05,162.04,0.73]
[1754237477826,4.61028617,162.05,162.04,10.07944371]
[1754237478195,4.61028617,162.05,162.04,9.40944371]
[1754237479119,4.61028617,162.05,162.04,10.07944371]
[1754237479812,4.61028617,162.05,162.04,53.25944371]
[1754237482926,13.95972988,162.05,162.04,0.06]
[1754237483127,25.11504564,162.05,162.04,0.06]
[1754237485523,44.81895093,162.05,162.04,0.06]
[1754237486717,35.46950722,162.05,162.04,0.06]
[1754237487036,44.81895093,162.05,162.04,0.06]
[1754237487524,44.10895093,162.05,162.04,0.06]
[1754237491348,34.75950722,162.05,162.04,0.06]
[1754237495647,35.46950722,162.05,162.04,0.06]
[1754237497531,34.75950722,162.05,162.04,0.06]
[1754237501642,35.46950722,162.05,162.04,0.06]
[1754237503466,44.81895093,162.05,162.04,0.06]
[1754237504139,50.00242721,162.05,162.04,0.06]
[1754237505044,44.81895093,162.05,162.04,0.06]
[1754237506556,50.00242721,162.05,162.04,0.06]
[1754237507538,50.01657673,162.05,162.04,0.06]
[1754237509872,40.66713302,162.05,162.04,0.06]
[1754237510058,50.01657673,162.05,162.04,0.06]
[1754237510663,50.01657673,162.05,162.03,0.06]
[1754237510664,26.0,162.03,162.02,0.06]
[1754237510870,44.12310045,162.03,162.02,0.06]
[1754237511355,44.81310045,162.03,162.02,0.06]
[1754237514563,50.01376526,162.03,162.02,0.06]
[1754237519459,93.11376526,162.03,162.02,0.06]
[1754237521573,50.01376526,162.03,162.02,0.06]
[1754237522972,50.01376526,162.03,162.01,48.55992703]
[1754237523277,18.81310045,162.02,162.01,48.55992703]
[1754237523949,24.01376526,162.02,162.01,48.55992703]
[1754237526671,61.89310045,162.02,162.01,48.55992703]
[1754237527558,67.09127338,162.02,162.01,48.55992703]
[1754237528577,66.40127338,162.02,162.01,48.55992703]
[1754237528786,19.96110648,162.02,162.01,48.55992703]
[1754237529361,19.95594716,162.02,162.01,48.55992703]
[1754237530285,20.64594716,162.02,162.01,48.55992703]
[1754237532162,20.64463327,162.02,162.01,48.55992703]
[1754237532885,50.80020278,162.02,162.0,0.06]
[1754237533058,114.03700863,162.01,162.0,0.06]
[1754237533258,90.07990139,162.01,162.0,0.06]
[1754237533483,89.38990139,162.01,162.0,0.06]
[1754237533680,90.07990139,162.01,162.0,0.06]
[1754237536688,93.45419081,162.01,162.0,0.06]
[1754237538198,86.5009447,162.01,162.0,0.06]
[1754237542885,117.69911763,162.01,162.0,0.06]
[1754237543893,117.69396226,162.01,162.0,0.06]
[1754237546316,74.23927829,162.01,162.0,0.76]
[1754237546608,13.51278728,162.01,162.0,0.76]
[1754237546891,18.12018157,162.01,162.0,0.76]
[1754237547299,18.12018157,162.01,162.0,0.06]
[1754237547672,18.12018157,162.01,162.0,0.76]
[1754237549995,18.12018157,162.01,162.0,0.06]
[1754237550663,18.12018157,162.01,162.0,0.76]
[1754237550866,18.12018157,162.01,162.0,0.06]
[1754237551266,18.12018157,162.01,162.0,0.76]
[1754237553004,13.51278728,162.01,162.0,0.76]
[1754237553209,18.1269979,162.01,162.0,0.76]
[1754237555102,18.1269979,162.01,162.0,0.06]
[1754237555330,18.83803194,162.01,162.0,0.06]
[1754237555488,55.58964592,162.01,161.99,0.06]
[1754237555687,74.93965758,162.0,161.99,0.06]
[1754237555895,26.0,161.97,161.94,0.9]
[1754237556100,18.12803194,161.96,161.94,0.9]
[1754237556295,8.76446571,161.95,161.94,0.2]
[1754237557020,8.76446571,161.95,161.94,0.9]
[1754237557614,14.75761455,161.95,161.94,0.9]
[1754237558687,8.76446571,161.95,161.94,0.9]
[1754237563161,18.84404054,161.95,161.94,0.2]
[1754237563873,14.69022917,161.95,161.94,0.2]
[1754237564053,18.84383046,161.95,161.94,0.2]
[1754237565728,24.99982088,161.95,161.94,0.2]
[1754237565949,26.0,161.93,161.89,0.2]
[1754237566249,9.36498451,161.91,161.89,0.2]
[1754237566451,8.76884595,161.9,161.89,0.2]
[1754237566630,18.84383046,161.9,161.89,0.2]
[1754237567036,18.13383046,161.9,161.89,0.2]
[1754237567247,18.84383046,161.9,161.89,0.2]
[1754237568857,35.62851443,161.9,161.89,0.2]
[1754237569060,43.45196714,161.9,161.89,0.2]
[1754237569751,43.44198916,161.9,161.89,0.2]
[1754237578468,43.43319773,161.9,161.89,0.2]
[1754237578766,25.93851376,161.9,161.89,0.87]
[1754237580338,16.57352925,161.9,161.89,0.87]
[1754237580544,4.59615318,161.9,161.89,0.87]
[1754237582950,52.62506576,161.9,161.89,0.2]
[1754237583367,52.6184033,161.9,161.89,0.2]
[1754237584074,43.25341879,161.9,161.89,0.2]
[1754237584270,52.6184033,161.9,161.89,0.2]
[1754237585487,43.25341879,161.9,161.89,0.2]
[1754237585654,52.6184033,161.9,161.89,0.2]
[1754237586388,51.9084033,161.9,161.89,0.2]
[1754237586975,52.6184033,161.9,161.89,0.2]
[1754237588982,69.40308727,161.9,161.89,0.2]
[1754237589153,69.40191453,161.9,161.89,0.2]
[1754237590079,51.90723056,161.9,161.89,0.2]
[1754237590787,51.40723056,161.9,161.89,0.2]
[1754237591292,52.11723056,161.9,161.89,0.2]
[1754237595382,68.90191453,161.9,161.89,0.2]
[1754237596890,68.90990225,161.9,161.89,0.2]
[1754237600679,65.54408623,161.9,161.89,0.2]
[1754237603083,68.02247723,161.9,161.89,0.2]
[1754237605079,111.14247723,161.9,161.89,0.2]
[1754237605484,116.33271792,161.9,161.89,0.2]
[1754237606109,73.23247403,161.9,161.89,0.2]
[1754237606286,116.35247403,161.9,161.89,0.2]
[1754237607390,7.82345271,161.89,161.87,0.06]
[1754237607714,83.86679515,161.88,161.87,0.06]
[1754237608404,84.54679515,161.88,161.87,0.06]
[1754237608728,66.37024786,161.88,161.87,0.06]
[1754237609322,71.56449331,161.88,161.87,0.06]
[1754237609510,71.58697389,161.88,161.87,0.06]
[1754237611903,70.90697389,161.88,161.87,0.06]
[1754237612102,70.90697389,161.88,161.87,0.74]
[1754237612717,70.90697389,161.88,161.87,0.06]
[1754237616906,71.58697389,161.88,161.87,0.06]
[1754237617407,66.39272844,161.88,161.87,0.06]
[1754237617797,26.0,161.85,161.76,58.5]
[1754237618133,26.0,161.82,161.81,0.68]
[1754237618290,34.77010724,161.82,161.81,0.68]
[1754237619421,39.61465803,161.82,161.8,0.68]
[1754237619601,8.77010724,161.81,161.8,0.68]
[1754237623997,8.77010724,161.81,161.77,9.381101]
[1754237624223,26.0,161.79,161.78,0.68]
[1754237624421,34.77010724,161.79,161.78,0.68]
[1754237625124,44.15120824,161.79,161.74,9.381101]
[1754237625340,44.15120824,161.79,161.75,0.68]
[1754237625341,26.0,161.76,161.75,0.68]